[Event "Early-Titled-Tuesday-Blitz-April-16-2024"]
[Site "Chess.com"]
[Date "2024.04.16"]
[Round "10"]
[White "Alexei_Gubajdullin"]
[Black "MathiasWomacka"]
[Result "1/2-1/2"]
[WhiteElo "2613"]
[BlackElo "2481"]
[TimeControl "180+1"]
[EndTime "9:58:12 PDT"]
[Termination "Game drawn by repetition"]

1. Nf3 {[%clk 0:03:00.9]} 1... c5 {[%clk 0:02:59.9]} 2. g3 {[%clk 0:03:00.1]}
2... Nc6 {[%clk 0:02:59.5]} 3. Bg2 {[%clk 0:03:00.4]} 3... g6 {[%clk 0:02:59.5]}
4. O-O {[%clk 0:03:00.3]} 4... Bg7 {[%clk 0:03:00]} 5. d3 {[%clk 0:03:00.7]}
5... e5 {[%clk 0:03:00.3]} 6. c4 {[%clk 0:03:00.3]} 6... Nge7 {[%clk 0:03:00.7]}
7. Nc3 {[%clk 0:03:00.9]} 7... d6 {[%clk 0:02:59]} 8. Bd2 {[%clk 0:02:55.9]}
8... O-O {[%clk 0:02:55.7]} 9. a3 {[%clk 0:02:55.8]} 9... a5 {[%clk 0:02:38.6]}
10. Ne1 {[%clk 0:02:55.2]} 10... Be6 {[%clk 0:02:36.9]} 11. Nd5 {[%clk
0:02:54.5]} 11... Rb8 {[%clk 0:02:35.2]} 12. Rb1 {[%clk 0:02:54.1]} 12... b5
{[%clk 0:02:34.8]} 13. Nxe7+ {[%clk 0:02:51.1]} 13... Nxe7 {[%clk 0:02:32.7]}
14. cxb5 {[%clk 0:02:52]} 14... Rxb5 {[%clk 0:02:31.9]} 15. Qa4 {[%clk
0:02:52.9]} 15... Qb6 {[%clk 0:02:29.9]} 16. b4 {[%clk 0:02:47.2]} 16... axb4
{[%clk 0:02:26]} 17. axb4 {[%clk 0:02:47.4]} 17... cxb4 {[%clk 0:02:25.7]} 18.
Rxb4 {[%clk 0:02:47]} 18... Rxb4 {[%clk 0:02:25.6]} 19. Qxb4 {[%clk 0:02:44.6]}
19... Rb8 {[%clk 0:02:22.9]} 20. Qa3 {[%clk 0:02:32.1]} 20... Bd5 {[%clk
0:02:00.7]} 21. Bxd5 {[%clk 0:02:28]} 21... Nxd5 {[%clk 0:02:01.6]} 22. Nc2
{[%clk 0:02:24.7]} 22... Bf8 {[%clk 0:01:46.8]} 23. Ne3 {[%clk 0:02:10.1]} 23...
Nxe3 {[%clk 0:01:45.2]} 24. fxe3 {[%clk 0:02:08.4]} 24... Qb2 {[%clk 0:01:42.4]}
25. Qa7 {[%clk 0:02:03.8]} 25... Rb7 {[%clk 0:01:40.6]} 26. Qa6 {[%clk
0:02:02.7]} 26... Bh6 {[%clk 0:01:30.8]} 27. Qc4 {[%clk 0:01:56.9]} 27... Kg7
{[%clk 0:00:53.1]} 28. Qc6 {[%clk 0:01:47.9]} 28... Ra7 {[%clk 0:00:40.2]} 29.
Qxd6 {[%clk 0:01:28.2]} 29... Qxd2 {[%clk 0:00:37.3]} 30. Qxe5+ {[%clk
0:01:28.4]} 30... Kf8 {[%clk 0:00:24.7]} 31. Qb8+ {[%clk 0:01:27.9]} 31... Kg7
{[%clk 0:00:24.5]} 32. Qe5+ {[%clk 0:01:27.7]} 32... Kf8 {[%clk 0:00:24.5]} 33.
Qb8+ {[%clk 0:01:18.1]} 33... Kg7 {[%clk 0:00:24.5]} 34. Qe5+ {[%clk 0:01:11.2]}
1/2-1/2

[Event "Early-Titled-Tuesday-Blitz-April-16-2024"]
[Site "Chess.com"]
[Date "2024.04.16"]
[Round "10"]
[White "romulocardoso"]
[Black "yonaltimur"]
[Result "0-1"]
[WhiteElo "2310"]
[BlackElo "2425"]
[TimeControl "180+1"]
[EndTime "9:58:23 PDT"]
[Termination "yonaltimur won by checkmate"]

1. e4 {[%clk 0:03:00.9]} 1... c5 {[%clk 0:02:57]} 2. Nf3 {[%clk 0:03:01.2]} 2...
d6 {[%clk 0:02:57.3]} 3. d4 {[%clk 0:03:01.6]} 3... cxd4 {[%clk 0:02:58.2]} 4.
Nxd4 {[%clk 0:03:02.3]} 4... Nf6 {[%clk 0:02:59.1]} 5. Nc3 {[%clk 0:03:02.8]}
5... a6 {[%clk 0:02:59.8]} 6. f3 {[%clk 0:03:03.4]} 6... e5 {[%clk 0:03:00.2]}
7. Nb3 {[%clk 0:03:04.1]} 7... Be6 {[%clk 0:03:00.2]} 8. Be3 {[%clk 0:03:04.4]}
8... Be7 {[%clk 0:03:00.7]} 9. Qd2 {[%clk 0:03:04.2]} 9... h5 {[%clk 0:02:58.4]}
10. O-O-O {[%clk 0:03:04.4]} 10... Nbd7 {[%clk 0:02:59]} 11. h4 {[%clk
0:03:04.1]} 11... b5 {[%clk 0:02:59.3]} 12. Kb1 {[%clk 0:03:04]} 12... Rc8
{[%clk 0:02:59.1]} 13. Nd5 {[%clk 0:03:00.4]} 13... Bxd5 {[%clk 0:02:44.6]} 14.
exd5 {[%clk 0:03:01.3]} 14... Qc7 {[%clk 0:02:40.3]} 15. Bg5 {[%clk 0:02:51.9]}
15... Nc5 {[%clk 0:02:34.3]} 16. Nxc5 {[%clk 0:02:49.2]} 16... Qxc5 {[%clk
0:02:35.2]} 17. c3 {[%clk 0:02:42.6]} 17... e4 {[%clk 0:02:17.4]} 18. Bxf6
{[%clk 0:02:24.4]} 18... Bxf6 {[%clk 0:02:18.3]} 19. fxe4 {[%clk 0:02:25]} 19...
Be5 {[%clk 0:02:18.3]} 20. Bd3 {[%clk 0:02:24.3]} 20... a5 {[%clk 0:02:15.8]}
21. Qe2 {[%clk 0:02:20.5]} 21... Rb8 {[%clk 0:02:15]} 22. Rhf1 {[%clk
0:02:16.6]} 22... b4 {[%clk 0:02:14]} 23. Qf3 {[%clk 0:02:06]} 23... Qa7 {[%clk
0:01:54.8]} 24. c4 {[%clk 0:02:03.8]} 24... a4 {[%clk 0:01:52.9]} 25. Rc1 {[%clk
0:01:53.3]} 25... a3 {[%clk 0:01:51.9]} 26. b3 {[%clk 0:01:49.1]} 26... Qd4
{[%clk 0:01:50]} 27. Kc2 {[%clk 0:01:49.6]} 27... Rb7 {[%clk 0:01:36.8]} 28. Kd1
{[%clk 0:01:41.3]} 28... f5 {[%clk 0:01:21.5]} 29. exf5 {[%clk 0:01:39]} 29...
Re7 {[%clk 0:01:19.5]} 30. Qe4 {[%clk 0:01:27.9]} 30... Qxe4 {[%clk 0:01:17.2]}
31. Bxe4 {[%clk 0:01:28.8]} 31... Bb2 {[%clk 0:01:17.6]} 32. Bd3 {[%clk
0:00:59.2]} 32... Bxc1 {[%clk 0:01:16.5]} 33. Kxc1 {[%clk 0:01:00.1]} 33... Kf7
{[%clk 0:01:16.8]} 34. Kd2 {[%clk 0:01:00]} 34... Rhe8 {[%clk 0:01:16.2]} 35.
Rf3 {[%clk 0:01:00.1]} 35... Kf6 {[%clk 0:01:16.4]} 36. Rg3 {[%clk 0:01:00.5]}
36... Re1 {[%clk 0:01:12.6]} 37. Rg6+ {[%clk 0:01:00.8]} 37... Kf7 {[%clk
0:01:13]} 38. Rg5 {[%clk 0:00:58.7]} 38... Ra1 {[%clk 0:01:12.9]} 39. Rxh5
{[%clk 0:00:51]} 39... Rxa2+ {[%clk 0:01:12.9]} 40. Kd1 {[%clk 0:00:51.6]} 40...
Rxg2 {[%clk 0:01:10.1]} 41. f6 {[%clk 0:00:48.2]} 41... a2 {[%clk 0:01:08.2]}
42. fxg7 {[%clk 0:00:44]} 42... a1=R+ {[%clk 0:01:07.4]} 43. Bb1 {[%clk
0:00:44.7]} 43... Rxb1# {[%clk 0:01:07.9]} 0-1

[Event "Early-Titled-Tuesday-Blitz-April-16-2024"]
[Site "Chess.com"]
[Date "2024.04.16"]
[Round "10"]
[White "GMAneta"]
[Black "manitodeplomo"]
[Result "0-1"]
[WhiteElo "2541"]
[BlackElo "2639"]
[TimeControl "180+1"]
[EndTime "9:58:24 PDT"]
[Termination "manitodeplomo won by resignation"]

1. d4 {[%clk 0:03:00.7]} 1... g6 {[%clk 0:02:56.2]} 2. Nf3 {[%clk 0:03:01.6]}
2... Bg7 {[%clk 0:02:56]} 3. c4 {[%clk 0:02:59.1]} 3... Nf6 {[%clk 0:02:55.2]}
4. g3 {[%clk 0:02:57.2]} 4... c5 {[%clk 0:02:54.8]} 5. Bg2 {[%clk 0:02:43.4]}
5... Qa5+ {[%clk 0:02:53.7]} 6. Bd2 {[%clk 0:02:38.8]} 6... Qb6 {[%clk
0:02:53.1]} 7. dxc5 {[%clk 0:02:37.1]} 7... Qxc5 {[%clk 0:02:46.3]} 8. O-O
{[%clk 0:02:17]} 8... Qxc4 {[%clk 0:02:42.7]} 9. Na3 {[%clk 0:02:15.8]} 9... Qa6
{[%clk 0:02:38.3]} 10. Qc1 {[%clk 0:02:08]} 10... O-O {[%clk 0:02:34.8]} 11. Ne5
{[%clk 0:01:58.7]} 11... Qxe2 {[%clk 0:02:26.8]} 12. Re1 {[%clk 0:01:56.3]}
12... Qa6 {[%clk 0:02:12.4]} 13. Bf1 {[%clk 0:01:55]} 13... Qb6 {[%clk 0:02:12]}
14. Be3 {[%clk 0:01:53.9]} 14... Qd8 {[%clk 0:02:10.9]} 15. Nb5 {[%clk
0:01:52.7]} 15... Nc6 {[%clk 0:02:08.1]} 16. Nxc6 {[%clk 0:01:52.6]} 16... bxc6
{[%clk 0:02:07.4]} 17. Nxa7 {[%clk 0:01:52.8]} 17... Bb7 {[%clk 0:02:05.5]} 18.
a4 {[%clk 0:01:50]} 18... Nd5 {[%clk 0:01:59.4]} 19. Qc5 {[%clk 0:01:29.2]}
19... d6 {[%clk 0:01:51.3]} 20. Nxc6 {[%clk 0:01:26]} 20... dxc5 {[%clk
0:01:47.8]} 21. Nxd8 {[%clk 0:01:25.4]} 21... Rfxd8 {[%clk 0:01:35]} 22. Bxc5
{[%clk 0:01:26.3]} 22... Bxb2 {[%clk 0:01:08]} 23. Rab1 {[%clk 0:01:21.4]} 23...
Bc3 {[%clk 0:01:07.7]} 24. Rec1 {[%clk 0:01:21.4]} 24... Bc6 {[%clk 0:01:03.6]}
25. Bg2 {[%clk 0:01:18]} 25... Bf6 {[%clk 0:00:55.2]} 26. Bxe7 {[%clk
0:01:12.5]} 26... Nxe7 {[%clk 0:00:54.4]} 27. Bxc6 {[%clk 0:01:11.9]} 27... Nxc6
{[%clk 0:00:51.4]} 28. Rxc6 {[%clk 0:01:12.8]} 28... Kg7 {[%clk 0:00:48.8]} 29.
Rc4 {[%clk 0:01:10.7]} 29... Rd4 {[%clk 0:00:46.6]} 30. Rc7 {[%clk 0:01:09.5]}
30... Rdxa4 {[%clk 0:00:40.8]} 31. Rbb7 {[%clk 0:01:09.2]} 31... Rf8 {[%clk
0:00:40.6]} 32. h4 {[%clk 0:01:09.3]} 32... h5 {[%clk 0:00:40.7]} 33. Kg2 {[%clk
0:01:06.3]} 33... Ra5 {[%clk 0:00:40]} 0-1

[Event "Early-Titled-Tuesday-Blitz-April-16-2024"]
[Site "Chess.com"]
[Date "2024.04.16"]
[Round "10"]
[White "Revan_2002"]
[Black "Let_it_be_1"]
[Result "1-0"]
[WhiteElo "2724"]
[BlackElo "2594"]
[TimeControl "180+1"]
[EndTime "9:58:32 PDT"]
[Termination "Revan_2002 won by resignation"]

1. d4 {[%clk 0:03:00.9]} 1... d5 {[%clk 0:03:00.1]} 2. Nf3 {[%clk 0:03:00.7]}
2... e6 {[%clk 0:03:00.4]} 3. c4 {[%clk 0:03:00.9]} 3... Nf6 {[%clk 0:03:00.3]}
4. Nc3 {[%clk 0:03:00.7]} 4... Be7 {[%clk 0:03:00.6]} 5. Bf4 {[%clk 0:03:01.3]}
5... O-O {[%clk 0:03:00.1]} 6. e3 {[%clk 0:03:01.6]} 6... Nbd7 {[%clk 0:03:00]}
7. c5 {[%clk 0:03:01.4]} 7... c6 {[%clk 0:03:00.3]} 8. b4 {[%clk 0:03:01.1]}
8... b6 {[%clk 0:03:00.6]} 9. h4 {[%clk 0:03:00.3]} 9... a5 {[%clk 0:02:59.8]}
10. a3 {[%clk 0:02:50.4]} 10... Ba6 {[%clk 0:02:53.6]} 11. Bxa6 {[%clk
0:02:49.6]} 11... Rxa6 {[%clk 0:02:53.4]} 12. b5 {[%clk 0:02:50.2]} 12... cxb5
{[%clk 0:02:51.6]} 13. c6 {[%clk 0:02:48.7]} 13... Qc8 {[%clk 0:02:51.8]} 14. c7
{[%clk 0:02:48.8]} 14... b4 {[%clk 0:02:52.1]} 15. Nb5 {[%clk 0:02:49.2]} 15...
bxa3 {[%clk 0:02:50.4]} 16. Qc2 {[%clk 0:02:24.2]} 16... Bb4+ {[%clk 0:02:44.8]}
17. Ke2 {[%clk 0:02:23.3]} 17... Ne4 {[%clk 0:02:41.3]} 18. Ng5 {[%clk 0:02:11]}
18... Ndf6 {[%clk 0:02:17.5]} 19. f3 {[%clk 0:02:09]} 19... Qd7 {[%clk
0:02:15.1]} 20. fxe4 {[%clk 0:01:35.2]} 20... Qxb5+ {[%clk 0:02:14.1]} 21. Kf2
{[%clk 0:01:35.6]} 21... Raa8 {[%clk 0:01:56.9]} 22. Rhc1 {[%clk 0:01:25.7]}
22... Rfc8 {[%clk 0:01:43.2]} 23. exd5 {[%clk 0:01:21.6]} 23... exd5 {[%clk
0:01:30.2]} 24. Be5 {[%clk 0:01:21]} 24... Ne4+ {[%clk 0:01:17.7]} 25. Nxe4
{[%clk 0:01:19.7]} 25... dxe4 {[%clk 0:01:18.1]} 26. Qxe4 {[%clk 0:01:19.5]}
26... f6 {[%clk 0:00:47.7]} 27. Bf4 {[%clk 0:01:13.3]} 27... Bc3 {[%clk
0:00:29.7]} 28. Rxc3 {[%clk 0:00:50.5]} 28... Qb2+ {[%clk 0:00:29.4]} 29. Rc2
{[%clk 0:00:50.8]} 29... Qxa1 {[%clk 0:00:29.6]} 30. Qd5+ {[%clk 0:00:51.4]}
30... Kh8 {[%clk 0:00:29]} 31. Qxa8 {[%clk 0:00:51.2]} 1-0

[Event "Early-Titled-Tuesday-Blitz-April-16-2024"]
[Site "Chess.com"]
[Date "2024.04.16"]
[Round "10"]
[White "vladgoncharov"]
[Black "SpongeBob_03"]
[Result "1-0"]
[WhiteElo "2621"]
[BlackElo "2280"]
[TimeControl "180+1"]
[EndTime "9:58:34 PDT"]
[Termination "vladgoncharov won by resignation"]

1. d4 {[%clk 0:02:38.7]} 1... d5 {[%clk 0:02:58.9]} 2. c4 {[%clk 0:02:38]} 2...
e6 {[%clk 0:02:59]} 3. Nc3 {[%clk 0:02:36.3]} 3... a6 {[%clk 0:02:58.9]} 4. cxd5
{[%clk 0:02:35.8]} 4... exd5 {[%clk 0:02:59.8]} 5. Bf4 {[%clk 0:02:33.9]} 5...
Nf6 {[%clk 0:02:55.7]} 6. e3 {[%clk 0:02:33.5]} 6... Bd6 {[%clk 0:02:54.7]} 7.
Bg3 {[%clk 0:02:30]} 7... c6 {[%clk 0:02:54.4]} 8. Qb3 {[%clk 0:02:28.2]} 8...
Bxg3 {[%clk 0:02:48.8]} 9. hxg3 {[%clk 0:02:27.6]} 9... Qe7 {[%clk 0:02:46]} 10.
Nf3 {[%clk 0:02:25.5]} 10... Bf5 {[%clk 0:02:45.6]} 11. Ne5 {[%clk 0:02:23.8]}
11... O-O {[%clk 0:02:42.3]} 12. Rc1 {[%clk 0:02:12.7]} 12... Nbd7 {[%clk
0:02:20.8]} 13. Qxb7 {[%clk 0:02:11]} 13... Rab8 {[%clk 0:02:20.9]} 14. Nxc6
{[%clk 0:02:10.3]} 14... Qxe3+ {[%clk 0:02:20.4]} 15. fxe3 {[%clk 0:02:09.1]}
15... Rxb7 {[%clk 0:02:21.3]} 16. Ne7+ {[%clk 0:02:08.9]} 16... Kh8 {[%clk
0:02:20.2]} 17. Nxf5 {[%clk 0:02:08.7]} 17... Rxb2 {[%clk 0:02:20.3]} 18. Bd3
{[%clk 0:01:39.5]} 18... Re8 {[%clk 0:02:17.4]} 19. Rc2 {[%clk 0:01:37.3]} 19...
Rxc2 {[%clk 0:02:13.2]} 20. Bxc2 {[%clk 0:01:36.6]} 20... g6 {[%clk 0:02:13.3]}
21. Nd6 {[%clk 0:01:36.4]} 21... Rxe3+ {[%clk 0:02:13.4]} 22. Kd2 {[%clk
0:01:36.2]} 22... Rxg3 {[%clk 0:02:12.6]} 23. Nxf7+ {[%clk 0:01:24.2]} 23... Kg7
{[%clk 0:02:11.8]} 24. Ne5 {[%clk 0:01:23.3]} 24... Rxg2+ {[%clk 0:02:11.6]} 25.
Kc1 {[%clk 0:01:21.6]} 25... Nf8 {[%clk 0:02:04.3]} 26. Bb3 {[%clk 0:01:13.1]}
26... Ne6 {[%clk 0:02:00.5]} 27. Nc6 {[%clk 0:01:13.1]} 27... Nf4 {[%clk
0:01:56.5]} 28. Nb4 {[%clk 0:01:07.6]} 28... Ne4 {[%clk 0:01:18]} 29. Nbxd5
{[%clk 0:00:54.7]} 29... Nd3+ {[%clk 0:01:13]} 30. Kb1 {[%clk 0:00:54.4]} 30...
Nd2+ {[%clk 0:01:11.1]} 31. Ka1 {[%clk 0:00:53.3]} 31... Nxb3+ {[%clk
0:00:48.6]} 32. axb3 {[%clk 0:00:52.5]} 32... Rg4 {[%clk 0:00:43.1]} 33. Nc7
{[%clk 0:00:45.8]} 33... Rxd4 {[%clk 0:00:39.4]} 34. Ne6+ {[%clk 0:00:43.5]} 1-0

[Event "Early-Titled-Tuesday-Blitz-April-16-2024"]
[Site "Chess.com"]
[Date "2024.04.16"]
[Round "10"]
[White "GreenPeach24"]
[Black "ilqar_74"]
[Result "0-1"]
[WhiteElo "2434"]
[BlackElo "2753"]
[TimeControl "180+1"]
[EndTime "9:58:34 PDT"]
[Termination "ilqar_74 won by resignation"]

1. d4 {[%clk 0:02:59.9]} 1... Nf6 {[%clk 0:02:59.8]} 2. Nf3 {[%clk 0:02:59.3]}
2... e6 {[%clk 0:03:00.1]} 3. Bf4 {[%clk 0:02:57.1]} 3... d5 {[%clk 0:03:00.5]}
4. e3 {[%clk 0:02:56.7]} 4... Bd6 {[%clk 0:03:00.9]} 5. Bg3 {[%clk 0:02:56.9]}
5... O-O {[%clk 0:02:59.6]} 6. Nbd2 {[%clk 0:02:57]} 6... c5 {[%clk 0:02:59]} 7.
dxc5 {[%clk 0:02:57.4]} 7... Bxg3 {[%clk 0:02:58.4]} 8. hxg3 {[%clk 0:02:56.7]}
8... Qe7 {[%clk 0:02:58.2]} 9. b4 {[%clk 0:02:55.1]} 9... a5 {[%clk 0:02:57.2]}
10. c3 {[%clk 0:02:54.7]} 10... Nc6 {[%clk 0:02:57.2]} 11. a3 {[%clk 0:02:50.5]}
11... e5 {[%clk 0:02:57.5]} 12. Be2 {[%clk 0:02:36]} 12... Rd8 {[%clk
0:02:55.9]} 13. Rb1 {[%clk 0:01:53.5]} 13... Ne4 {[%clk 0:02:54.4]} 14. Qc2
{[%clk 0:01:48.7]} 14... f5 {[%clk 0:02:52.1]} 15. Nxe4 {[%clk 0:01:45.6]} 15...
fxe4 {[%clk 0:02:50.5]} 16. Nd2 {[%clk 0:01:42.9]} 16... Bf5 {[%clk 0:02:51]}
17. f4 {[%clk 0:01:33.5]} 17... d4 {[%clk 0:02:46.6]} 18. cxd4 {[%clk
0:01:26.8]} 18... exd4 {[%clk 0:02:45.2]} 19. Bc4+ {[%clk 0:01:27.1]} 19... Kh8
{[%clk 0:02:44.8]} 20. Nf1 {[%clk 0:01:25.5]} 20... d3 {[%clk 0:02:42.5]} 21.
Qd2 {[%clk 0:01:25.1]} 21... axb4 {[%clk 0:02:42.3]} 22. axb4 {[%clk 0:01:24.8]}
22... Ra4 {[%clk 0:02:42.1]} 23. Bb5 {[%clk 0:01:20.8]} 23... Ra3 {[%clk
0:02:40.2]} 24. g4 {[%clk 0:01:08.5]} 24... Bxg4 {[%clk 0:02:36.8]} 25. Ng3
{[%clk 0:01:04.9]} 25... Rda8 {[%clk 0:02:35.1]} 26. O-O {[%clk 0:01:03.1]}
26... h5 {[%clk 0:02:30.7]} 27. Bxc6 {[%clk 0:00:49.1]} 27... bxc6 {[%clk
0:02:30.3]} 28. Qb2 {[%clk 0:00:43.5]} 28... h4 {[%clk 0:02:23.5]} 29. Nh1
{[%clk 0:00:42.6]} 29... Ra2 {[%clk 0:02:17.7]} 30. Qc3 {[%clk 0:00:39.3]} 30...
Rc2 {[%clk 0:02:16.1]} 31. Qe1 {[%clk 0:00:29.4]} 31... d2 {[%clk 0:02:12]} 32.
Qf2 {[%clk 0:00:12.5]} 32... d1=Q {[%clk 0:02:08.7]} 33. Rfxd1 {[%clk
0:00:07.4]} 33... Rxf2 {[%clk 0:02:08.7]} 34. Nxf2 {[%clk 0:00:07.3]} 34... Bxd1
{[%clk 0:02:08.6]} 35. Rxd1 {[%clk 0:00:07.7]} 35... Ra2 {[%clk 0:02:07.7]} 36.
Rd4 {[%clk 0:00:07.6]} 36... h3 {[%clk 0:02:07.9]} 37. Nxh3 {[%clk 0:00:07.2]}
37... Qh4 {[%clk 0:02:01.4]} 38. Kh2 {[%clk 0:00:06.6]} 38... Ra8 {[%clk
0:01:49.5]} 39. Rxe4 {[%clk 0:00:06.2]} 39... Ra2 {[%clk 0:01:45.5]} 40. Rd4
{[%clk 0:00:05.9]} 40... Re2 {[%clk 0:01:42.4]} 41. e4 {[%clk 0:00:06]} 41...
Re3 {[%clk 0:01:30.4]} 42. e5 {[%clk 0:00:05.6]} 42... Rxh3+ {[%clk 0:01:30.1]}
0-1

[Event "Early-Titled-Tuesday-Blitz-April-16-2024"]
[Site "Chess.com"]
[Date "2024.04.16"]
[Round "10"]
[White "Fjal"]
[Black "Hudijegszid"]
[Result "0-1"]
[WhiteElo "2326"]
[BlackElo "2466"]
[TimeControl "180+1"]
[EndTime "9:58:45 PDT"]
[Termination "Hudijegszid won by resignation"]

1. Nf3 {[%clk 0:02:55.6]} 1... d5 {[%clk 0:02:59.7]} 2. g3 {[%clk 0:02:55.5]}
2... b5 {[%clk 0:02:58.9]} 3. c3 {[%clk 0:02:53.3]} 3... c5 {[%clk 0:02:57.7]}
4. Qb3 {[%clk 0:02:52.8]} 4... a6 {[%clk 0:02:48.8]} 5. a4 {[%clk 0:02:52.8]}
5... c4 {[%clk 0:02:47.3]} 6. Qc2 {[%clk 0:02:50.1]} 6... Bb7 {[%clk 0:02:46.1]}
7. Bg2 {[%clk 0:02:49.1]} 7... Nd7 {[%clk 0:02:41.7]} 8. b3 {[%clk 0:02:47.9]}
8... Ngf6 {[%clk 0:02:36.7]} 9. Nd4 {[%clk 0:02:43.5]} 9... e5 {[%clk
0:02:35.4]} 10. Nf3 {[%clk 0:02:34.8]} 10... Bd6 {[%clk 0:02:31.3]} 11. O-O
{[%clk 0:02:32.1]} 11... O-O {[%clk 0:02:31.1]} 12. d3 {[%clk 0:02:32.7]} 12...
Nc5 {[%clk 0:02:23.2]} 13. axb5 {[%clk 0:02:26.7]} 13... Nxb3 {[%clk 0:02:19.6]}
14. Ra2 {[%clk 0:02:14.3]} 14... axb5 {[%clk 0:02:19.4]} 15. Bg5 {[%clk
0:02:10.1]} 15... h6 {[%clk 0:02:13.7]} 16. Rxa8 {[%clk 0:02:08.6]} 16... Bxa8
{[%clk 0:02:13.2]} 17. Bxf6 {[%clk 0:02:09]} 17... Qxf6 {[%clk 0:02:14.1]} 18.
Nbd2 {[%clk 0:02:04.8]} 18... Nxd2 {[%clk 0:02:07.9]} 19. Nxd2 {[%clk 0:02:05]}
19... Bc5 {[%clk 0:01:52.4]} 20. Qa2 {[%clk 0:02:04.7]} 20... Bc6 {[%clk
0:01:46.8]} 21. dxc4 {[%clk 0:01:26.5]} 21... Ra8 {[%clk 0:01:37.1]} 22. Qb1
{[%clk 0:01:19.1]} 22... bxc4 {[%clk 0:01:36.4]} 23. e3 {[%clk 0:01:10.8]} 23...
e4 {[%clk 0:01:29.6]} 24. Rd1 {[%clk 0:01:04]} 24... Qxc3 {[%clk 0:01:22.9]} 25.
Nf1 {[%clk 0:00:33.9]} 25... Qb4 {[%clk 0:01:14.5]} 26. Qc1 {[%clk 0:00:29.6]}
26... Ra2 {[%clk 0:01:04.2]} 27. h4 {[%clk 0:00:28.7]} 27... Qb2 {[%clk
0:01:02.4]} 28. Qxb2 {[%clk 0:00:27.9]} 28... Rxb2 {[%clk 0:01:03.3]} 29. Ra1
{[%clk 0:00:28.2]} 29... c3 {[%clk 0:01:00.5]} 30. Rc1 {[%clk 0:00:22.4]} 30...
c2 {[%clk 0:00:53.3]} 31. Nd2 {[%clk 0:00:23]} 31... Ba4 {[%clk 0:00:51.8]} 32.
Bf1 {[%clk 0:00:20.5]} 32... Ba3 {[%clk 0:00:51.8]} 33. Kg2 {[%clk 0:00:16.2]}
33... Rb8 {[%clk 0:00:49.8]} 34. Ra1 {[%clk 0:00:15.6]} 34... c1=Q {[%clk
0:00:49.7]} 0-1

[Event "Early-Titled-Tuesday-Blitz-April-16-2024"]
[Site "Chess.com"]
[Date "2024.04.16"]
[Round "10"]
[White "pfalcon1949"]
[Black "diamonds13"]
[Result "1-0"]
[WhiteElo "1958"]
[BlackElo "2318"]
[TimeControl "180+1"]
[EndTime "9:58:54 PDT"]
[Termination "pfalcon1949 won by resignation"]

1. e4 {[%clk 0:03:00.9]} 1... c5 {[%clk 0:02:51.6]} 2. Nf3 {[%clk 0:03:00.2]}
2... e6 {[%clk 0:02:51.5]} 3. d4 {[%clk 0:03:00.6]} 3... cxd4 {[%clk 0:02:51.6]}
4. Nxd4 {[%clk 0:03:01.3]} 4... Nf6 {[%clk 0:02:51]} 5. Nc3 {[%clk 0:03:01.3]}
5... Nc6 {[%clk 0:02:51.7]} 6. Ndb5 {[%clk 0:02:58.7]} 6... Bb4 {[%clk
0:02:49.5]} 7. a3 {[%clk 0:02:58.6]} 7... Bxc3+ {[%clk 0:02:49.1]} 8. Nxc3
{[%clk 0:02:58.1]} 8... d5 {[%clk 0:02:49.8]} 9. exd5 {[%clk 0:02:56.2]} 9...
exd5 {[%clk 0:02:49.5]} 10. Bd3 {[%clk 0:02:50.8]} 10... O-O {[%clk 0:02:49.7]}
11. O-O {[%clk 0:02:50.2]} 11... d4 {[%clk 0:02:50.4]} 12. Ne4 {[%clk 0:02:49]}
12... Nxe4 {[%clk 0:02:47.7]} 13. Bxe4 {[%clk 0:02:49.9]} 13... Re8 {[%clk
0:02:47.6]} 14. Bd3 {[%clk 0:02:42.8]} 14... Ne5 {[%clk 0:02:45.9]} 15. Bf4
{[%clk 0:02:39.4]} 15... Bg4 {[%clk 0:02:45.1]} 16. f3 {[%clk 0:02:38.4]} 16...
Bh5 {[%clk 0:02:37.9]} 17. Bxe5 {[%clk 0:02:37.2]} 17... Rxe5 {[%clk 0:02:37.1]}
18. Re1 {[%clk 0:02:37]} 18... Qg5 {[%clk 0:02:26.8]} 19. Rxe5 {[%clk
0:02:27.3]} 19... Qxe5 {[%clk 0:02:25.8]} 20. Qe2 {[%clk 0:02:25.9]} 20... Re8
{[%clk 0:02:20.5]} 21. Re1 {[%clk 0:02:22]} 21... Qxe2 {[%clk 0:02:17.3]} 22.
Rxe2 {[%clk 0:02:22.9]} 22... Rxe2 {[%clk 0:02:16.8]} 23. Bxe2 {[%clk
0:02:22.4]} 23... Bg6 {[%clk 0:02:17.4]} 24. Bd3 {[%clk 0:02:07.1]} 24... Bxd3
{[%clk 0:02:16.9]} 25. cxd3 {[%clk 0:02:05.5]} 25... Kf8 {[%clk 0:02:17.3]} 26.
Kf2 {[%clk 0:02:05.6]} 26... Ke7 {[%clk 0:02:17.5]} 27. f4 {[%clk 0:02:06.1]}
27... Kd6 {[%clk 0:02:17.7]} 28. Ke2 {[%clk 0:02:01.7]} 28... a5 {[%clk
0:02:12.3]} 29. Kd2 {[%clk 0:02:01.8]} 29... Kc5 {[%clk 0:02:12.6]} 30. b3
{[%clk 0:02:00.2]} 30... h5 {[%clk 0:01:42.6]} 31. Ke2 {[%clk 0:01:59.6]} 31...
Kd5 {[%clk 0:01:35.2]} 32. Kf3 {[%clk 0:01:59.4]} 32... b6 {[%clk 0:01:05.8]}
33. Kg3 {[%clk 0:01:47.5]} 33... Ke6 {[%clk 0:01:03.5]} 34. Kh4 {[%clk
0:01:47.7]} 34... Kf5 {[%clk 0:01:03.1]} 35. Kg3 {[%clk 0:01:35.9]} 35... g5
{[%clk 0:00:57.5]} 36. fxg5 {[%clk 0:01:31.3]} 36... Kxg5 {[%clk 0:00:57.6]} 37.
Kf3 {[%clk 0:01:31.4]} 37... Kf5 {[%clk 0:00:49.2]} 38. g3 {[%clk 0:01:31.6]}
38... f6 {[%clk 0:00:39.1]} 39. h3 {[%clk 0:01:31.7]} 39... Ke5 {[%clk
0:00:31.8]} 40. g4 {[%clk 0:01:20.9]} 40... hxg4+ {[%clk 0:00:16.4]} 41. Kxg4
{[%clk 0:01:16.5]} 41... b5 {[%clk 0:00:15.2]} 42. h4 {[%clk 0:01:16.2]} 42...
f5+ {[%clk 0:00:15.3]} 43. Kf3 {[%clk 0:01:15.8]} 43... Ke6 {[%clk 0:00:15.1]}
44. Kf4 {[%clk 0:01:14.4]} 44... Kf6 {[%clk 0:00:15.5]} 45. h5 {[%clk
0:01:13.8]} 45... a4 {[%clk 0:00:14.9]} 46. b4 {[%clk 0:01:08.7]} 1-0